Cogmind - Beta 14 @@@ ROGUE MODE // 2024.08.17 @ 11:18:28 Player: dorusv Result: Destroyed by L-31 Rogue with Katana Performance ------------- Evolutions (2) 1000 Regions Visited (4) 800 Robots Destroyed (34) 170 Value Destroyed (1199) 1199 Prototype IDs (2) 40 Alien Tech Used (0) 0 Bonus (0) 0 TOTAL SCORE: 3209 Bonus ------- None Cogmind --------- Core Integrity 0/550 Matter 191/300 Energy 100/100 System Corruption 1% Temperature Cool (0) Movement Core (150) Ox2 Location -8/Materials Parts ------- > --- POWER (2) -------- (None) > --- PROPULSION (2) --- (None) > --- UTILITY (4) ------ (None) > --- WEAPON (3) ------- Gauss Cannon > --- INVENTORY (5) ---- Aluminum Leg Aluminum Leg Medium Laser Assault Rifle Heavy Assault Rifle Peak State ------------ > --- POWER ------------ Light Nuclear Core Light Nuclear Core > --- PROPULSION ------- Aluminum Leg Aluminum Leg > --- UTILITY ---------- Coolant Injector Small Storage Unit Seismic Detector Medium Armor Plating > --- WEAPON ----------- EM Shotgun Gatling Laser Heavy Assault Rifle > --- INVENTORY -------- Light Nuclear Core Aluminum Leg Aluminum Leg EM Shotgun Medium Laser Particle Gun Assault Rifle Heavy Assault Rifle [Rating: 25] Favorites ----------- Power Ion Engine Engine Ion Engine Power Core Light Nuclear Core Propulsion Aluminum Leg Leg Aluminum Leg Utility Small Storage Unit Device Seismic Detector Storage Small Storage Unit Protection Medium Armor Plating Weapon Heavy Assault Rifle Energy Gun Beam Rifle Ballistic Gun Heavy Assault Rifle Ballistic Cannon Gauss Cannon Build | -11 -10 -10 -9 -8 ------- Run | Yrd Mat Min Mat Mat Slots Evolved 4 | . . . 2 2 Power 1 | . . . 1 . Propulsion . | . . . . . Utility 2 | . . . 1 1 Weapon 1 | . . . . 1 Parts Attached 41 | 7 1 . 13 20 Power 10 | 1 . . 2 7 Engine 3 | 1 . . 1 1 Core 7 | . . . 1 6 Reactor . | . . . . . Propulsion 8 | 2 . . 4 2 Treads . | . . . . . Leg 8 | 2 . . 4 2 Wheel . | . . . . . Hover . | . . . . . Flight . | . . . . . Utility 7 | 2 . . 3 2 Device 4 | 1 . . 1 2 Storage 1 | 1 . . . . Processor . | . . . . . Hackware . | . . . . . Protection 2 | . . . 2 . Artifact . | . . . . . Weapon 16 | 2 1 . 4 9 Energy Gun 6 | . 1 . 1 4 Energy Cannon . | . . . . . Ballistic Gun 8 | 2 . . 3 3 Ballistic Cannon 2 | . . . . 2 Launcher . | . . . . . Special Weapon . | . . . . . Impact Weapon . | . . . . . Slashing Weapon . | . . . . . Piercing Weapon . | . . . . . Special Melee Weapon . | . . . . . Unidentified Prototypes . | . . . . . Corrupted Parts 1 | . . . . 1 System Corruption 1 | . . . . 1 Parts Lost 17 | . . . 2 15 Power 7 | . . . 2 5 Propulsion 3 | . . . . 3 Utility 3 | . . . . 3 Weapon 4 | . . . . 4 Highest Loss Streak 11 | . . . 2 11 To Critical Strikes . | . . . . . Average Slot Usage (%) 88 | . 98 100 96 74 Engine 11 | . 14 14 19 . Core 4 | . . . . 9 Leg 19 | . 28 28 22 13 Device 13 | . 14 14 10 17 Storage 9 | . 14 14 11 6 Protection 6 | . . . 10 2 Energy Gun 11 | . 7 14 11 14 Ballistic Gun 10 | . 19 14 11 7 Peak Build Rating 25 | 7 8 8 14 25 Average Rating 12 | 4 7 8 11 18 On Entrance 7 | . 7 8 8 14 Naked Turns 33 | . . . . 33 Heaviest Build 36 | 14 15 15 29 36 Greatest Support 20 | 20 20 20 20 20 Greatest Overweight (x) 5 | 3 . . 1 5 Average Overweight (x) . | . . . . . Largest Inventory Capacity 8 | 8 8 8 8 8 Average Capacity 7 | 7 8 8 8 7 Most Carried 8 | 3 4 4 8 8 Average Carried 5 | 1 3 4 5 6 Final Capacity 8 | 8 8 8 8 5 Final Carried 8 | 2 4 4 8 5 Class Distribution -------------------- 73% | Mutant 15% | Scavenger-Skirmisher 4% | Tank 3% | Scavenger-Mutant Dominant Class ---------------- Mutant | -10/Materials Mutant | -10/Mines Mutant | -9/Materials Scavenger-Skirmisher | -8/Materials Resources | -11 -10 -10 -9 -8 ----------- Run | Yrd Mat Min Mat Mat Matter Collected 752 | 194 99 . 274 185 Remotely . | . . . . . Salvage Created 1532 | 118 99 . 544 771 Parts 81 | 1 5 . 31 44 Haulers Intercepted . | . . . . . Recyclers Shooed . | . . . . . Parts Field Recycled . | . . . . . Retrieved Matter . | . . . . . Parts Self-Destructed . | . . . . . Prevented . | . . . . . Kills | -11 -10 -10 -9 -8 ------- Run | Yrd Mat Min Mat Mat Combat Hostiles Destroyed 27 | . 2 . 11 14 Guns 26 | . 2 . 11 13 Cannons 1 | . . . . 1 Classes Destroyed 9 | 2 1 . 4 2 Worker 1 | . . . 1 . Builder 1 | . . . . 1 Tunneler 1 | 1 . . . . Recycler 1 | 1 . . . . Mechanic 2 | . . . 1 1 Watcher 1 | . . . 1 . Grunt 20 | . 2 . 10 8 Sentry 6 | . . . 1 5 Hunter 1 | . . . . 1 Best Kill Streak 5 | 2 2 . 5 4 Combat Bots Only 5 | . 2 . 5 4 Max Kills in Single Turn 2 | 1 1 . 2 2 Gunslinging . | . . . . . Exploded . | . . . . . Melee . | . . . . . Uniques/NPCs Destroyed . | . . . . . Combat | -11 -10 -10 -9 -8 -------- Run | Yrd Mat Min Mat Mat Hostile Shots Fired 249 | . 9 8 65 167 Missed 74 | . 3 3 20 48 Damage Taken 2697 | . 90 69 528 2010 Core 646 | . . 17 66 563 Absorbed by Shields . | . . . . . Regen/Repaired (Parts) 163 | . . . 163 . Core Remaining (%) 92 | 100 . 93 83 . Volleys Fired 99 | 9 6 1 42 41 Largest 3 | 2 2 2 2 3 Hottest 168 | 40 40 85 85 168 Shots Fired 196 | 18 12 2 77 87 Gun 189 | 18 12 2 77 80 Cannon 7 | . . . . 7 Launcher . | . . . . . Special . | . . . . . Kinetic 107 | 18 12 1 35 41 Thermal 75 | . . 1 42 32 Explosive . | . . . . . Electromagnetic 14 | . . . . 14 Robot Hit Streak 12 | 7 4 5 8 12 Robot Miss Streak 9 | 2 1 1 4 9 Penetration Max . | . . . . . Secondary Targets 10 | . . . 3 7 Max Gunslinging Chain 1 | . . . 1 1 Shots Hit Robots 132 | 14 9 1 48 60 Core Hits 70 | 3 5 . 20 42 Critical Kills . | . . . . . Critical Parts Destroyed . | . . . . . Critical Strikes 1 | . . . 1 . Burn 1 | . . . 1 . Melee Attacks . | . . . . . Impact . | . . . . . Slashing . | . . . . . Piercing . | . . . . . Sneak Attacks . | . . . . . Combat Hostiles . | . . . . . Follow-up Attacks . | . . . . . Damage Inflicted 2231 | 139 96 23 720 1253 Guns 2080 | 139 93 23 720 1105 Cannons 147 | . . . . 147 Explosions . | . . . . . Melee . | . . . . . Ramming 4 | . 3 . . 1 Kinetic 1021 | 139 93 7 320 462 Thermal 1062 | . . 16 400 646 Explosive . | . . . . . Electromagnetic 144 | . . . . 144 Impact . | . . . . . Slashing . | . . . . . Piercing . | . . . . . Highest Corruption 1 | . . . . 1 Average Corruption 1 | . . . . 1 Corruption Purged . | . . . . . Corruption Blocked . | . . . . . Effects 1 | . . . . 1 Parts Rejected 1 | . . . . 1 Overload Shots . | . . . . . Overflow Damage . | . . . . . Projectiles . | . . . . . Explosions . | . . . . . Melee . | . . . . . Knockbacks . | . . . . . Impact . | . . . . . Kinetic . | . . . . . Secondary . | . . . . . Self-Inflicted Damage . | . . . . . Shots . | . . . . . Rammed . | . . . . . Targets Rammed 2 | . 1 . . 1 Kicked 2 | . 1 . . 1 Crushed . | . . . . . Highest Temperature 434 | . 18 59 434 199 Average Temperature 110 | . 9 32 129 98 Received Heat Transfer 1314 | . 48 60 288 918 Effects 6 | . . . 6 . Shutdowns 4 | . . . 4 . Interference 1 | . . . 1 . Short Circuit 1 | . . . 1 . Siege Activations . | . . . . . Robots Corrupted . | . . . . . Combat Hostiles . | . . . . . Parts Fried . | . . . . . Impact Corruptions . | . . . . . Robots Melted . | . . . . . Combat Hostiles . | . . . . . Parts Melted 3 | . . . . 3 Heat Transferred 2596 | . . 37 1110 1449 Parts Sabotaged . | . . . . . Parts Stolen . | . . . . . Parts Stripped . | . . . . . Power Chain Reactions . | . . . . . Alert | -11 -10 -10 -9 -8 ------- Run | Yrd Mat Min Mat Mat Peak Influence 269 | 10 85 33 198 269 Initial 54 | . 6 33 12 54 Average 91 | 2 47 33 72 150 Maximum Alert Level 1 | . . . . 1 Low Security (%) 92 | 100 100 100 100 76 Level 1 7 | . . . . 23 Level 2 . | . . . . . Level 3 . | . . . . . Level 4 . | . . . . . Level 5 . | . . . . . High Security . | . . . . . Max Security . | . . . . . Squads Dispatched 11 | . 2 . 5 4 Investigation 5 | . 2 . 3 . Extermination . | . . . . . Reinforcement 3 | . . . 2 1 Assault 1 | . . . . 1 Garrison 2 | . . . . 2 Intercept . | . . . . . Searches Triggered . | . . . . . Construction Impeded . | . . . . . Haulers Reinforced . | . . . . . Active Scanning Responses . | . . . . . Cargo Convoy Interrupts . | . . . . . Stealth | -11 -10 -10 -9 -8 --------- Run | Yrd Mat Min Mat Mat Distress Signals 5 | . . . 2 3 Communications Jammed . | . . . . . Distress Signals . | . . . . . Times Spotted 51 | . 6 2 13 30 Peak Tracking Total 10 | . 4 2 5 10 Tactical Retreats 4 | . . . . 4 Traps | -11 -10 -10 -9 -8 ------- Run | Yrd Mat Min Mat Mat Traps Triggered 1 | . 1 . . . Indirectly . | . . . . . Trap Hack Attempts . | . . . . . Triggered . | . . . . . Disarmed . | . . . . . Reprogrammed . | . . . . . Reused . | . . . . . Traps Extracted . | . . . . . Installed . | . . . . . Triggered . | . . . . . Machines | -11 -10 -10 -9 -8 ---------- Run | Yrd Mat Min Mat Mat Machines Disabled . | . . . . . Max in Single Turn . | . . . . . Garrison Access 1 | . . . . 1 Machines Repaired . | . . . . . Machines Dismantled . | . . . . . Machines Sabotaged . | . . . . . Overloaded Fab Kills . | . . . . . Hacking | -11 -10 -10 -9 -8 --------- Run | Yrd Mat Min Mat Mat Machines Accessed 6 | . 1 . 4 1 Terminals 4 | . 1 . 3 . Fabricators . | . . . . . Repair Stations 1 | . . . 1 . Recycling Units . | . . . . . Scanalyzers . | . . . . . Garrison Access 1 | . . . . 1 Total Hacks 28 | . 3 . 23 2 Successful 15 | . 1 . 14 . Failed 13 | . 2 . 9 2 Catastrophic 2 | . 2 . . . Database Lockouts . | . . . . . Manual 2 | . 2 . . . Terminals 17 | . 3 . 14 . Fabricators . | . . . . . Repair Stations 9 | . . . 9 . Recycling Units . | . . . . . Scanalyzers . | . . . . . Garrison Access 2 | . . . . 2 Terminal Hacks 9 | . 1 . 8 . Record 1 | . . . 1 . Robot Analysis 1 | . . . 1 . Prototype ID Bank 1 | . . . 1 . Alert Level 1 | . . . 1 . Unreport Threat 1 | . . . 1 . Dispatch Records 2 | . 1 . 1 . Hauler Manifests 1 | . . . 1 . Zone Layout 1 | . . . 1 . Fabricator Hacks . | . . . . . Repair Station Hacks 6 | . . . 6 . Scan Component 3 | . . . 3 . Repair 3 | . . . 3 . Recycling Unit Hacks . | . . . . . Scanalyzer . | . . . . . Garrison Access Hacks . | . . . . . Unauthorized Hacks . | . . . . . Terminals . | . . . . . Fabricators . | . . . . . Repair Stations . | . . . . . Recycling Units . | . . . . . Scanalyzers . | . . . . . Garrison Access . | . . . . . Data Cores Recovered . | . . . . . Used . | . . . . . Hacking Detections 6 | . 1 . 4 1 Full Trace Events 6 | . 1 . 4 1 Feedback Events . | . . . . . Feedback Blocked . | . . . . . Robot Schematics Acquired . | . . . . . Robots Built . | . . . . . Authchips . | . . . . . Time . | . . . . . Total Robot Build Rating . | . . . . . Part Schematics Acquired . | . . . . . Parts Built . | . . . . . Authchips . | . . . . . Time . | . . . . . Total Part Build Rating . | . . . . . Parts Repaired 3 | . . . 3 . Time 94 | . . . 94 . Parts Recycled . | . . . . . Recycled Matter . | . . . . . Retrieved Matter . | . . . . . Retrieved Components . | . . . . . Parts Scanalyzed . | . . . . . Part Schematics Acquired . | . . . . . Parts Damaged . | . . . . . Bothacking | -11 -10 -10 -9 -8 ------------ Run | Yrd Mat Min Mat Mat Used RIF Installer . | . . . . . Robots Hacked . | . . . . . Non-combat . | . . . . . Combat . | . . . . . Robot Hacks Applied . | . . . . . Relay Couplers Released 2 | . . . . 2 Machine Destruction 2 | . . . . 2 Fabnet Peak Effective % . | . . . . . Robots Rewired . | . . . . . Allies Hacked . | . . . . . Hacks Repelled . | . . . . . Allies | -11 -10 -10 -9 -8 -------- Run | Yrd Mat Min Mat Mat Total Allies . | . . . . . Largest Group . | . . . . . Highest-Rated Group . | . . . . . Highest-Rated Ally . | . . . . . Total Orders . | . . . . . Ally Attacks . | . . . . . Total Damage . | . . . . . Kills . | . . . . . Allies Corrupted . | . . . . . Allies Melted . | . . . . . Intel | -11 -10 -10 -9 -8 ------- Run | Yrd Mat Min Mat Mat Robot Analysis Total 1 | . . . 1 . Derelict Logs Recovered . | . . . . . Drone Launches . | . . . . . Drone Recoveries . | . . . . . Exploration | -11 -10 -10 -9 -8 ------------- Run | Yrd Mat Min Mat Mat Turns Passed 1576 | 123 130 29 751 543 Spaces Moved 717 | 71 86 20 278 262 Core 114 | 12 . . . 102 Treads . | . . . . . Legs 603 | 59 86 20 278 160 Wheels . | . . . . . Hover . | . . . . . Flight . | . . . . . Fastest Speed 50 | 50 120 120 120 50 Average Speed 156 | 120 120 120 185 148 Slowest Speed 300 | 200 120 120 190 300 Overloaded Moves . | . . . . . Propulsion Burnouts . | . . . . . Robots Hopped . | . . . . . Cave-ins Triggered . | . . . . . Exploration Rate (%) 15 | 5 22 9 20 20 Regions Visited 4 Branch Regions 1 Pre-discovered Areas . | . . . . . Known Exits Taken . | . . . . . Unknown Exits Taken 4 | 1 1 1 1 . Scrap Searched . | . . . . . Spaces Dug . | . . . . . Terrain Destroyed 3 | . . . . 3 Melee . | . . . . . Projectile 3 | . . . . 3 AOE . | . . . . . Terrain Rammed . | . . . . . Walls Destroyed . | . . . . . Machines Disabled . | . . . . . Actions | -11 -10 -10 -9 -8 --------- Run | Yrd Mat Min Mat Mat Total 978 | 89 102 23 433 331 Wait 102 | . 5 3 94 . Move 713 | 70 85 19 277 262 Hop . | . . . . . Pick Up 9 | 3 2 . 2 2 Fast Attach 24 | 6 1 . 5 12 Attach 7 | 1 . . 2 4 Detach 3 | . 1 . 2 . Swap 10 | . . . 6 4 Drop 9 | . 1 . 3 5 Fire 99 | 9 6 1 42 41 Melee . | . . . . . Ram . | . . . . . Kick 2 | . 1 . . 1 Crush . | . . . . . Escape Stasis . | . . . . . Rewire . | . . . . . Trap . | . . . . . Miscellaneous . | . . . . . Route ------- -11/Scrapyard -10/Materials -10/Mines -9/Materials -8/Materials History --------- Turn | Location | Event 22 | -11/Scrapyard | Discovered new exit (range 16) 124 | -11/Scrapyard | Entered Materials 228 | -10/Materials | Discovered new exit (range 13) 254 | -10/Materials | Entered Mines 254 | -10/Mines | Discovered new exit (range 7) 271 | -10/Mines | Received a Rocket Launcher from a helpful Derelict 283 | -10/Mines | Entered Materials 283 | -9/Materials | Evolved 2 slots: Power x1, Utility x1 316 | -9/Materials | Build established: Mutant 814 | -9/Materials | Repaired Broken Seismic Detector 874 | -9/Materials | Repaired Med. Armor Plating 901 | -9/Materials | Repaired Aluminum Leg 1026 | -9/Materials | Discovered new exit (range 3) 1034 | -9/Materials | Entered another Materials area 1034 | -8/Materials | Evolved 2 slots: Utility x1, Weapon x1 1435 | -8/Materials | Core integrity fell below 50% 1468 | -8/Materials | Core integrity fell below 20% 1472 | -8/Materials | Released all parts (6) 1502 | -8/Materials | Lost 11 parts (3p3n2u3w) 1577 | -8/Materials | Destroyed by L-31 Rogue with Katana Last Messages --------------- 01471_ Aluminum Leg destroyed. 01472_ Released Lgt. Nuclear Core. 01472_ Released Particle Gun. 01472_ Released Gatling Laser. 01472_ Released Coolant Injector. 01472_ Released Terrain Scanner. 01472_ Released Hvy. Assault Rifle. 01472_ R-06 Scavenger collects Gatling Laser. 01472_ M-28 Smith repairs G-50 Soldier. 01473_ R-06 Scavenger collects Hvy. Assault Rifle. 01475_ R-06 Scavenger collects Particle Gun. 01477_ R-06 Scavenger collects Lgt. Treads. 01505_ Acquired Gauss Cannon. 01515_ W-25 Informer sends out distress signal. 01520_ System corrupted: Gauss Cannon rejected. 01541_ Y-45 Defender destroyed. 01551_ Slug penetrates Wall. 01557_ Matter Filter disabled. 01565_ U-05 Engineer builds a Wall. Map ----- +----------------------------------------------------+ | ?# #????????????????????????????? | | ## +????????????????????????????? | | #????????????????????????????? | | #????????????????????????????? | | #?????????????????? ?????????? | | ## #?????????????????? ?????????? | | ?# #?????????????????? ?????????? | | ?# #?????????????????? ##???????? | | ?# #? ?"?????????????? #???????? | | ?# # ""? ##########?## +???????? | | ?# # # ! ? #???????? | | # #? ! + ? #???????? | | # # # """"" #???????? | | ?+ + """ " % """"" #???????? | | ?# # """ " """"" +???????? | | ?# #??"" # %"""" #???????? | | ?# #???? # """"" #???????? | | ?#% #?????# """"" ##??????? | | ## ####### """"" #??????? | | ]=%[! #??????? | | ######## m #??????? | | #?????####+##+####gg #??????? | | # ###??????????????# ##??????? | | # #??????????????# #???????? | | #!! !!#??????????????# l +???????? | | #!!]]!!#??????????????# @#???????? | | ########??????????????# #???????? | | ??????????????????????#####???????? | | ??????????????????????????????????? | | ??????????????????????????????????? | | ??????????????????????????????????? | | ??????????????????????????????????? | | ??????????????????????????????????? | | | | | | | | | | | | | | | | | | | | | | | | | | | | | | | | | | | +----------------------------------------------------+ Best States ------------- Heat Dissipation 31 Coolant Potential 65 Energy Generation 23 Energy Capacity 400 Matter Stores 300 Matter Capacity 300 Sight Range 16 Terrain Scan Range 14 Terrain Scan Density 10 Armor Coverage 225 Evasion (%) 55 Item Schematics ----------------- None Robot Schematics ------------------ None Fabricated ------------ Nothing Alien Tech Used ----------------- None Achievements -------------- Everything Is Under Control Challenges ------------ None Game ------ Seed SchematicGuidedDeflector Manual? 0 Play Time 00:18:07 Cumulative 5.9 hours Start 2024.08.17 @ 11:03:04 End 2024.08.17 @ 11:18:28 Sessions 1 Manual Loads 0 Difficulty Rogue Special Mode None Game No. 24 Rogue 21 Adventurer 3 Explorer 0 Win Type - Total 0 Types 0/0/0/0/0/0/0/0/0 Lore% 9 Gallery% 12 Achievement% 16 Wizard Run 0 Options --------- Layout 1 ASCII 0 Keyboard 1 Movement Arrows Keybinds 0 Fullscreen 1 Font 28/Smallcaps Map View 50x43 Zoom Use 0% Tactical HUD 1 Map Filters NONE Filters NONE Steam 1 RUN: 4732232f-2900-4bf4-a815-7dfb9b5d7b1d